bitfinex/quotes_ETHUSD_20250403
["timestamp","ask_amount","ask_price","bid_price","bid_amount"]
[1743642355975,8.81132,1815.9,1815.7,6.5343]
[1743642356891,1.18089,1816.4,1815.8,0.766]
[1743642357061,0.40880701,1816.3,1815.8,0.766]
[1743642357266,0.40880701,1816.3,1815.6,0.766]
[1743642357267,4.4059,1815.8,1815.6,0.766]
[1743642357492,4.40552,1815.9,1815.7,5.728]
[1743642357962,4.40483,1816.2,1815.8,0.218877]
[1743642358169,7.40483,1816.2,1815.8,4.624587]
[1743642358568,3.0,1816.2,1816.0,4.40524]
[1743642358767,7.40447,1816.4,1816.1,5.728]
[1743642358981,4.4048,1816.2,1816.1,0.21764092]
[1743642359187,7.4048,1816.2,1816.1,0.21764092]
[1743642359394,3.0,1816.0,1815.8,0.8329]
[1743642359882,7.40531,1816.0,1815.9,5.728]
[1743642362408,4.40627,1815.6,1815.4,6.16083766]
[1743642362604,4.40625,1815.6,1815.5,5.729]
[1743642362980,4.40625,1815.6,1815.5,5.95049842]
[1743642363187,7.40625,1815.6,1815.5,0.22149842]
[1743642363391,8.99602233,1815.6,1815.5,5.94949842]
[1743642363710,4.40677,1815.4,1815.1,0.1]
[1743642363881,4.40722,1815.2,1815.1,0.1]
[1743642364290,5.81929656,1815.6,1815.1,0.1]
[1743642364291,4.40653,1815.5,1815.1,0.1]
[1743642364798,4.40653,1815.5,1815.2,0.8311]
[1743642364799,8.81323,1815.5,1815.2,0.8311]
[1743642364999,10.68502099,1815.5,1815.2,0.8311]
[1743642365177,4.40676,1815.4,1815.2,0.8311]
[1743642365508,8.16352,1815.2,1815.1,0.1]
[1743642365708,4.40883,1814.6,1814.4,0.8311]
[1743642365910,4.40938,1814.4,1814.2,0.17221594]
[1743642366078,3.0,1814.5,1814.2,5.90121594]
[1743642366620,3.41242253,1814.6,1814.2,5.90121594]
[1743642366821,3.0,1814.6,1814.3,0.7571]
[1743642366987,3.0,1814.8,1814.3,0.7571]
[1743642367194,3.0,1814.8,1814.4,4.40916]
[1743642367593,6.010112,1815.1,1814.2,11.67685925]
[1743642367594,3.0,1815.0,1814.5,4.40892]
[1743642367930,8.49253334,1815.3,1814.8,4.40812]
[1743642368116,3.0,1815.2,1814.8,4.40812]
[1743642368528,8.49253334,1815.3,1814.8,4.40812]
[1743642368693,12.89973334,1815.3,1814.8,4.40812]
[1743642368893,7.40728,1815.2,1814.8,4.40812]
[1743642369635,7.40728,1815.2,1814.7,5.18031]
[1743642369792,7.40728,1815.2,1814.7,6.712209]
[1743642369995,7.40728,1815.2,1814.7,11.120469]
[1743642370351,3.0,1815.2,1814.8,4.40808]
[1743642370807,7.40723,1815.2,1814.8,4.40808]
[1743642371650,1.87179099,1815.5,1814.9,0.05509741]
[1743642371839,8.49177334,1815.6,1815.1,4.40727]
[1743642372149,4.40614,1815.7,1815.3,0.7949]
[1743642372352,4.40775,1815.0,1814.6,5.73]
[1743642372514,8.49287334,1815.1,1814.6,10.13867]
[1743642372720,4.40772,1815.0,1814.7,0.7517]
[1743642372933,4.08538334,1815.1,1814.7,0.7517]
[1743642373134,3.0,1815.2,1814.7,1.840723]
[1743642373330,4.40678,1815.4,1814.8,4.40805]
[1743642373532,3.0,1815.3,1814.8,4.40805]
[1743642373753,7.40716,1815.3,1814.9,5.73]
[1743642373919,11.81436,1815.3,1814.9,5.73]
[1743642374555,7.40716,1815.3,1814.9,10.13793]
[1743642374732,3.0,1815.3,1815.0,0.8232]
[1743642374932,4.40674,1815.4,1815.0,5.23088]
[1743642375321,4.40674,1815.4,1815.0,5.13088]
[1743642375640,8.81361,1815.4,1815.0,0.7232]
[1743642376355,4.40704,1815.3,1815.0,0.7232]
[1743642377957,4.40704,1815.3,1815.1,0.18887513]
[1743642378165,8.81372,1815.4,1815.1,0.1805418]
[1743642378461,4.40699,1815.3,1815.1,0.1805418]
[1743642378663,4.40699,1815.3,1815.2,5.73]
[1743642379071,8.49237334,1815.3,1815.2,0.18032535]
[1743642379231,12.28027334,1815.3,1815.2,0.18032535]
[1743642379432,7.40722,1815.2,1815.0,5.73]
[1743642379762,4.82610534,1815.1,1815.0,5.73]
[1743642379969,5.148192,1815.1,1815.0,5.73]
[1743642380135,7.40722,1815.2,1815.0,5.73]
[1743642380350,4.40822,1814.8,1814.6,0.8327]
[1743642380551,4.40822,1814.8,1814.7,5.73]
[1743642380751,7.40777,1815.0,1814.7,5.73]
[1743642380951,4.40724,1815.2,1814.8,4.40819]
[1743642381158,4.40724,1815.2,1814.9,0.7932]
[1743642382068,7.40679,1815.4,1815.0,4.4077]
[1743642382358,7.40679,1815.4,1815.1,5.73]
[1743642382765,8.81436,1815.3,1815.1,5.73]
[1743642382962,10.40433433,1815.3,1815.1,5.73]
[1743642383463,4.40722,1815.2,1815.1,5.73]
[1743642385673,4.40722,1815.2,1815.1,5.91212308]
[1743642386033,5.99712433,1815.3,1815.1,5.91212308]
[1743642386344,7.40674,1815.4,1815.1,5.91212308]
[1743642386541,4.40642,1815.6,1815.2,0.8172]
[1743642386751,4.40602,1815.7,1815.3,4.5876304]
[1743642386946,4.40577,1815.8,1815.4,4.40664]
[1743642387272,4.40553,1815.9,1815.6,0.8172]
[1743642387442,10.40039633,1816.0,1815.7,0.17788261]
[1743642387642,4.40558,1815.9,1815.7,0.17788261]
[1743642387866,4.40577,1815.8,1815.7,0.17788261]
[1743642388251,5.99492633,1816.0,1815.5,5.73]
[1743642388557,5.18278,1816.3,1815.8,4.40576]
[1743642388873,4.40385,1816.6,1816.0,0.8313]
[1743642389172,4.40385,1816.6,1816.1,8.98338604]
[1743642389474,3.0,1816.5,1816.3,0.767]
[1743642389640,4.40385,1816.6,1816.4,5.90236875]
[1743642389840,3.0,1816.5,1816.4,5.90236875]
[1743642390378,4.40379,1816.7,1816.4,5.90236875]
[1743642390549,4.40384,1816.6,1816.4,5.90236875]
[1743642390878,7.40407,1816.5,1816.4,5.90236875]
[1743642391247,3.0,1816.5,1816.4,5.90236875]
[1743642391441,9.72941,1816.9,1816.4,10.30655875]
[1743642391681,4.40338,1816.8,1816.4,10.30655875]
[1743642391845,5.37633,1816.8,1816.4,10.30655875]
[1743642392242,5.37633,1816.8,1816.4,5.90236875]
[1743642392447,4.40361,1816.7,1816.4,5.90236875]
[1743642393549,4.40338,1816.8,1816.4,10.30657875]
[1743642394159,11.90638,1816.9,1816.4,10.30657875]
[1743642394364,13.50555633,1816.9,1816.4,10.30657875]
[1743642394573,9.10227633,1816.9,1816.5,4.40397]
[1743642394973,13.50555633,1816.9,1816.6,0.16268044]
[1743642395382,0.1,1816.9,1816.5,4.40387]
[1743642395584,0.1,1816.9,1816.7,4.56499888]
[1743642395894,0.1,1816.9,1816.8,11.06861193]
[1743642396101,0.1,1816.9,1816.8,16.41634959]
[1743642396296,0.1,1816.9,1816.8,18.49833855]
[1743642397618,0.1,1816.9,1816.8,14.09399855]
[1743642397777,0.1,1816.9,1816.8,5.51300959]
[1743642397973,0.1,1816.9,1816.8,11.23800959]
[1743642398290,0.1,1816.9,1816.8,15.64134959]
[1743642399107,0.1,1816.9,1816.8,16.42834959]
[1743642399312,0.1,1816.9,1816.8,18.51152955]
[1743642399513,0.1,1816.9,1816.8,12.02500959]
[1743642399682,0.1,1816.9,1816.8,6.67727193]
[1743642400193,0.1,1816.9,1816.8,11.08061193]
[1743642400517,0.1,1816.9,1816.8,16.42834959]
[1743642401722,0.1,1816.9,1816.8,12.02500959]
[1743642401928,0.1,1816.9,1816.8,0.16527193]
[1743642402223,3.1,1816.9,1816.8,5.725]
[1743642402428,7.5031,1816.9,1816.8,5.8863537]
[1743642403126,3.1,1816.9,1816.8,5.8863537]
[1743642403330,0.1,1816.9,1816.8,5.8863537]
[1743642403634,0.1,1816.9,1816.8,6.47498907]
[1743642403992,0.1,1816.9,1816.8,5.8863537]
[1743642405490,4.5031,1816.9,1816.8,5.8863537]
[1743642405691,5.3153,1816.9,1816.8,5.8863537]
[1743642406915,5.3153,1816.9,1816.8,0.1613537]
[1743642407121,4.40407,1816.5,1816.2,6.09783766]
[1743642407324,8.80899,1816.4,1816.3,5.88821338]
[1743642407633,3.0,1816.5,1816.3,5.88821338]
[1743642408098,4.40431,1816.4,1816.3,0.16421338]
[1743642408297,4.40431,1816.4,1816.3,5.724]
[1743642408497,4.40431,1816.4,1816.3,5.88980703]
[1743642408719,4.40415,1816.5,1816.3,5.88980703]
[1743642410900,8.80831,1816.5,1816.3,5.88980703]
[1743642411101,4.40431,1816.4,1816.3,5.88980703]
[1743642411629,3.0,1816.5,1816.3,5.88980703]
[1743642412418,7.40417,1816.5,1816.3,5.88980703]
[1743642413152,3.0,1816.5,1816.3,5.88980703]
[1743642413654,4.40431,1816.4,1816.3,5.88980703]
[1743642414452,7.40414,1816.5,1816.3,5.88980703]
[1743642415150,3.0,1816.5,1816.3,5.88980703]
[1743642415330,3.0,1816.5,1816.3,6.66870703]
[1743642415931,7.40408,1816.5,1816.3,6.66870703]
[1743642416350,4.40431,1816.4,1816.3,6.66870703]
[1743642416557,4.40431,1816.4,1816.3,5.88980703]
[1743642416946,7.40408,1816.5,1816.3,5.88980703]
[1743642417252,3.0,1816.5,1816.3,5.88980703]
[1743642418557,7.40409,1816.5,1816.3,5.88980703]
[1743642418859,4.4036,1816.7,1816.3,5.88980703]
[1743642419029,4.40336,1816.8,1816.4,5.16229]
[1743642419226,0.1,1816.9,1816.5,8.80785]
[1743642419559,3.1,1816.9,1816.6,4.40364]
[1743642419757,0.1,1816.9,1816.8,0.7953]
[1743642420059,0.1,1816.9,1816.8,5.36497717]
[1743642420421,0.1,1816.9,1816.8,5.42001302]
[1743642420649,0.1,1816.9,1816.8,5.36497717]
[1743642421259,4.5031,1816.9,1816.8,0.33833967]
[1743642422080,0.1,1816.9,1816.8,0.33833967]
[1743642423240,0.1,1816.9,1816.8,0.16633717]
[1743642424085,0.1,1816.9,1816.8,5.95831089]
[1743642425191,0.1,1816.9,1816.8,1.55497089]
[1743642425345,0.1,1816.9,1816.8,0.96603717]
[1743642426087,0.1,1816.9,1816.8,5.36937717]
[1743642426560,0.1,1816.9,1816.8,5.42441261]
[1743642427379,0.1,1816.9,1816.8,5.71337835]
[1743642427586,0.1,1816.9,1816.8,7.35238669]
[1743642427774,0.1,1816.9,1816.8,6.55268669]
[1743642428372,0.1,1816.9,1816.8,6.49765119]
[1743642428579,4.5031,1816.9,1816.8,0.51033835]
[1743642428866,7.5031,1816.9,1816.8,0.34400118]
[1743642429177,7.5031,1816.9,1816.8,0.5087653]
[1743642429178,7.92044313,1816.9,1816.8,0.5087653]
[1743642429497,7.92044313,1816.9,1816.8,0.34400118]
[1743642429707,7.5031,1816.9,1816.8,0.17199151]
[1743642429905,3.1,1816.9,1816.8,0.17199151]
[1743642430104,0.1,1816.9,1816.8,4.40334]
[1743642430600,0.1,1816.9,1816.8,4.5673564]
[1743642431187,0.1,1816.9,1816.8,0.1640164]
[1743642431385,8.90642,1816.9,1816.7,0.17199151]
[1743642431702,4.40334,1816.8,1816.7,0.17199151]
[1743642431908,4.5031,1816.9,1816.7,0.17199151]
[1743642432607,0.1,1816.9,1816.7,0.17199151]
[1743642432775,0.1,1816.9,1816.7,1.16434143]
[1743642433109,0.1,1816.9,1816.7,0.99234992]
[1743642433488,0.1,1816.9,1816.7,5.45093313]
[1743642433699,0.1,1816.9,1816.8,4.40334]
[1743642434008,3.0,1816.6,1816.2,5.34773766]
[1743642434207,4.4047,1816.3,1816.1,5.75]
[1743642435382,4.50842258,1816.6,1816.1,5.75]
[1743642435582,8.80853,1816.5,1816.1,6.34220714]
[1743642435790,4.40433,1816.4,1816.1,6.34220714]
[1743642436597,4.40457,1816.3,1816.1,6.34220714]
[1743642436916,4.4048,1816.2,1815.9,0.17206253]
[1743642437117,4.4048,1816.2,1816.0,5.735]
[1743642437711,4.40457,1816.3,1816.0,5.735]
[1743642438118,4.40457,1816.3,1816.1,5.86535247]
[1743642438692,4.4048,1816.2,1816.1,0.13735247]
[1743642439013,4.4048,1816.2,1816.1,5.724]
[1743642439219,4.4048,1816.2,1816.1,5.86135247]
[1743642440113,11.49018334,1816.2,1816.1,0.13735247]
[1743642440418,7.40528,1816.0,1815.9,5.726]
[1743642440617,7.40528,1816.0,1815.9,5.86403669]
[1743642440618,11.49066334,1816.0,1815.9,5.86403669]
[1743642442118,7.40528,1816.0,1815.9,5.86403669]
[1743642442619,4.40457,1816.3,1815.9,6.45044036]
[1743642442620,7.40455,1816.3,1815.9,6.45044036]
[1743642442811,7.40455,1816.3,1815.9,10.91084313]
[1743642443124,4.40383,1816.6,1816.1,4.40482]
[1743642443323,4.40383,1816.6,1816.2,4.845282]
[1743642443491,4.40383,1816.6,1816.3,5.725]
[1743642443794,4.50329,1816.9,1816.4,5.54189074]
[1743642443795,0.1,1816.9,1816.4,5.54189074]
[1743642443995,0.1,1816.9,1816.8,4.40334]
[1743642444195,0.1,1816.9,1816.8,5.86716958]
[1743642445322,0.1,1816.9,1816.8,6.45388654]
[1743642446314,0.1,1816.9,1816.8,10.85722654]
[1743642446720,4.50092,1817.9,1817.0,4.40286]
[1743642446925,4.40095,1817.8,1817.4,4.40168]
[1743642447113,4.40117,1817.7,1817.5,6.29383489]
[1743642447736,4.4014,1817.6,1817.5,0.13166689]
[1743642447911,4.4014,1817.6,1817.5,5.85566689]
[1743642448111,4.4014,1817.6,1817.5,5.724]
[1743642448313,4.4014,1817.6,1817.5,5.85492335]
[1743642449534,8.48655334,1817.7,1817.5,5.85492335]
[1743642449840,8.80257,1817.7,1817.5,5.85492335]
[1743642450131,7.4014,1817.6,1817.5,5.85492335]
[1743642450516,3.0,1817.6,1817.5,5.85492335]
[1743642451241,7.4014,1817.6,1817.5,5.85492335]
[1743642451736,3.0,1817.6,1817.5,5.85492335]
[1743642452355,7.4014,1817.6,1817.5,5.85492335]
[1743642453344,3.0,1817.6,1817.5,5.85492335]
[1743642453502,4.40117,1817.7,1817.5,5.85492335]
[1743642453704,3.0,1817.7,1817.5,5.85492335]
[1743642454102,3.0,1817.7,1817.5,6.8807704]
[1743642454535,3.0,1817.8,1817.5,6.8807704]
[1743642454741,4.50089,1817.9,1817.5,6.8807704]
[1743642455331,4.50088,1817.9,1817.6,0.8282]
[1743642455731,4.50088,1817.9,1817.7,0.12472679]
[1743642456123,4.50088,1817.9,1817.8,0.12434358]
[1743642456532,4.50088,1817.9,1817.6,0.8282]
[1743642456728,4.50088,1817.9,1817.8,0.12434358]
[1743642456946,4.50088,1817.9,1817.7,0.12472679]
[1743642457158,4.50088,1817.9,1817.8,0.12434358]
[1743642457559,4.50088,1817.9,1817.6,0.8282]
[1743642457760,4.50088,1817.9,1817.8,0.12434358]
[1743642458239,4.50088,1817.9,1817.6,0.8282]
[1743642458432,4.50088,1817.9,1817.7,0.12421799]
[1743642458731,4.50088,1817.9,1817.6,0.8282]
[1743642458931,4.50088,1817.9,1817.8,0.12383478]
[1743642459172,4.50088,1817.9,1817.7,0.12402721]
[1743642459331,4.50088,1817.9,1817.8,0.12364401]
[1743642459676,4.50088,1817.9,1817.6,0.8282]
[1743642459839,4.50088,1817.9,1817.8,0.12364401]
[1743642460040,0.1,1817.9,1817.8,4.40092]
[1743642460351,0.1,1817.9,1817.8,5.78095259]
[1743642460962,0.1,1817.9,1817.8,0.1226395]
[1743642461262,0.1,1817.9,1817.8,5.719]
[1743642461434,0.1,1817.9,1817.8,5.82725562]
[1743642461639,4.50068,1817.9,1817.8,5.82725562]
[1743642462200,7.50068,1817.9,1817.8,5.82725562]
[1743642465391,0.1,1817.9,1817.8,6.40998118]
[1743642465781,0.1,1817.9,1817.8,16.15863884]
[1743642468799,0.1,1817.9,1817.8,16.94903884]
[1743642469899,0.1,1817.9,1817.8,19.94903884]
[1743642470405,5.29667,1818.9,1818.5,4.39899]
[1743642470586,5.29667,1818.9,1818.6,5.718]
[1743642470800,5.29667,1818.9,1818.6,5.82230719]
[1743642472377,4.39854,1818.8,1818.6,5.82230719]
[1743642472599,4.39874,1818.7,1818.6,5.82230719]
[1743642472788,8.79722,1818.8,1818.6,5.718]
[1743642472992,4.39854,1818.8,1818.6,5.718]
[1743642474122,8.79722,1818.8,1818.6,5.718]
[1743642474282,4.39854,1818.8,1818.6,5.718]
[1743642475110,8.79727,1818.8,1818.6,5.718]
[1743642475318,4.39878,1818.7,1818.5,5.34773766]
[1743642475491,4.39854,1818.8,1818.6,5.716]
[1743642475693,4.39854,1818.8,1818.6,5.83916359]
[1743642476080,8.79724,1818.8,1818.6,5.83916359]
[1743642476617,8.22444,1818.7,1818.6,0.12316359]
[1743642476810,8.22444,1818.7,1818.6,5.83916359]
[1743642476977,9.486738,1818.7,1818.6,5.83916359]
[1743642477178,8.22444,1818.7,1818.6,5.83916359]
[1743642478507,7.39874,1818.7,1818.6,5.83916359]
[1743642480413,4.39854,1818.8,1818.6,5.83916359]
[1743642480623,0.1,1818.9,1818.6,10.23802359]
[1743642480915,0.1,1818.9,1818.6,10.11486]
[1743642481097,8.89674,1818.9,1818.7,1.011486]
[1743642481297,8.89674,1818.9,1818.6,5.716]
[1743642481492,4.39859,1818.8,1818.6,5.716]
[1743642485112,4.49826,1818.9,1818.6,5.716]
[1743642485490,4.39852,1818.8,1818.6,5.716]
[1743642488341,0.1,1818.9,1818.6,5.716]
[1743642488545,7.49832,1818.9,1818.6,5.716]
[1743642489324,11.89677,1818.9,1818.6,5.716]
[1743642489949,7.49832,1818.9,1818.6,5.716]
[1743642490847,0.1,1818.9,1818.7,0.05498035]
[1743642491016,0.1,1818.9,1818.7,0.8269]
[1743642492756,4.39862,1818.8,1818.6,5.716]
[1743642492951,0.1,1818.9,1818.6,5.716]
[1743642493141,0.1,1818.9,1818.6,10.11486]
[1743642493440,0.1,1818.9,1818.7,1.011486]
[1743642494055,4.49828,1818.9,1818.7,1.011486]
[1743642494254,4.49828,1818.9,1818.6,5.716]
[1743642495959,4.49828,1818.9,1818.6,10.11496]
[1743642496255,4.49828,1818.9,1818.8,4.3985]
[1743642496256,0.1,1818.9,1818.8,4.3985]
[1743642496440,0.1,1818.9,1818.8,9.74623766]
[1743642496820,0.1,1818.9,1818.8,9.80120886]
[1743642497025,0.1,1818.9,1818.8,11.30340275]
[1743642497243,0.1,1818.9,1818.8,11.24843155]
[1743642497618,0.1,1818.9,1818.8,11.42023231]
[1743642498658,0.1,1818.9,1818.8,11.83953358]
[1743642500248,0.1,1818.9,1818.8,12.61663358]
[1743642500969,0.1,1818.9,1818.8,15.61663358]
[1743642501349,1e-05,1818.9,1818.8,15.61663358]
[1743642505473,0.8109,1819.7,1818.9,5.34772766]
[1743642505651,0.8109,1819.7,1819.6,4.39657]
[1743642505853,0.9075,1819.9,1819.7,4.39627]
[1743642506245,0.9075,1819.9,1819.7,8.79246]
[1743642506540,0.9075,1819.9,1819.7,8.7924]
[1743642506740,0.9075,1819.9,1819.7,4.39619]
[1743642507679,0.1,1819.9,1819.8,4.835699]
[1743642507879,0.1,1819.9,1819.8,4.89064195]
[1743642508047,0.1,1819.9,1819.8,4.835699]
[1743642508672,0.1,1819.9,1819.8,4.89063294]
[1743642509077,0.1,1819.9,1819.8,4.835699]
[1743642509375,0.1,1819.9,1819.8,4.89063292]
[1743642509785,0.1,1819.9,1819.8,5.666099]
[1743642509971,1e-05,1819.9,1819.8,11.01382666]
[1743642510480,1e-05,1819.9,1819.8,11.43291386]
[1743642510683,0.8116,1820.7,1820.6,4.39415]
[1743642510888,0.8116,1820.7,1820.6,10.10415]
[1743642511183,0.8116,1820.7,1820.6,5.71]
[1743642511583,0.1,1820.9,1820.7,5.20197]
[1743642511783,0.1,1820.9,1820.7,4.39377]
[1743642511983,0.1,1820.9,1820.7,4.44868122]
[1743642512190,0.1,1820.9,1820.7,8.84238122]
[1743642512395,0.1,1820.9,1820.7,10.93343421]
[1743642512579,0.1,1820.9,1820.7,10.87852299]
[1743642512757,0.1,1820.9,1820.7,6.48475299]
[1743642513369,8.25131,1820.9,1820.8,5.709]
[1743642513574,0.7577,1820.8,1820.4,45.60751]
[1743642513803,0.7577,1820.8,1820.5,5.709]
[1743642514562,0.7577,1820.8,1820.6,4.39404]
[1743642514759,0.1,1820.9,1820.7,4.833304]
[1743642515864,0.1,1820.9,1820.8,4.39367]
[1743642516065,0.8877,1820.9,1820.7,0.439404]
[1743642516264,0.8877,1820.9,1820.6,9.74171766]
[1743642516265,0.8877,1820.9,1820.8,5.707]
[1743642517098,5.28119,1820.9,1820.8,5.707]
[1743642517410,0.8877,1820.9,1820.8,5.707]
[1743642518121,0.8877,1820.9,1820.8,10.10067]
[1743642518263,0.8877,1820.9,1820.8,5.707]
[1743642521299,0.1,1820.9,1820.8,6.77200328]
[1743642521482,0.1,1820.9,1820.8,11.110758]
[1743642526313,0.1,1820.9,1820.8,5.707]
[1743642526478,0.1,1820.9,1820.8,5.705]
[1743642526804,0.8609,1820.9,1820.8,5.705]
[1743642528778,0.1,1820.9,1820.8,16.27278766]
[1743642533012,0.1,1820.9,1820.8,15.44638766]
[1743642533202,0.1,1820.9,1820.8,5.34771766]
[1743642533522,0.1,1820.9,1820.8,11.05071766]
[1743642533883,0.1,1820.9,1820.8,5.703]
[1743642534616,0.1,1820.9,1820.8,7.52213751]
[1743642534803,0.1,1820.9,1820.8,11.91580751]
[1743642535715,0.1,1820.9,1820.8,12.08741226]
[1743642539348,0.1,1820.9,1820.8,17.43512992]
[1743642545063,0.1,1820.9,1820.8,6.53465992]
[1743642545267,0.8938,1820.9,1820.8,0.17160475]
[1743642545418,0.8938,1820.9,1820.8,5.87360475]
[1743642546125,0.8938,1820.9,1820.8,5.702]
[1743642547274,5.28723,1820.9,1820.8,5.702]
[1743642548130,5.28723,1820.9,1820.7,0.17329947]
[1743642548131,4.39367,1820.8,1820.7,0.17329947]
[1743642548445,4.39367,1820.8,1820.7,5.87529947]
[1743642548646,5.14827,1820.8,1820.7,5.87429947]
[1743642549156,5.14827,1820.8,1820.7,5.70266711]
[1743642550237,0.7546,1820.8,1820.7,5.70266711]
[1743642551239,9.112436,1820.8,1820.7,0.00166711]
[1743642551433,3.7873,1820.7,1819.5,5.34771766]
[1743642551636,3.7873,1820.7,1819.6,5.701]
[1743642551637,4.39621,1819.8,1819.6,5.701]
[1743642551954,4.39621,1819.8,1819.7,5.701]
[1743642553568,4.39658,1819.6,1819.4,5.34771766]
[1743642553745,4.39658,1819.6,1819.5,5.702]
[1743642554533,4.39632,1819.7,1819.5,5.702]
[1743642554735,0.7949,1820.1,1819.7,4.39618]
[1743642554939,4.39563,1820.0,1819.6,5.17976]
[1743642555736,4.39563,1820.0,1819.6,4.39656]
[1743642556254,4.39589,1819.9,1819.5,6.80697177]
[1743642556457,4.39589,1819.9,1819.5,5.702]
[1743642557144,4.39589,1819.9,1819.5,10.09881]
[1743642557366,4.39589,1819.9,1819.5,12.16147477]
[1743642557968,4.39589,1819.9,1819.5,17.50919243]
[1743642558771,8.79197,1819.9,1819.5,11.04971766]
[1743642558956,0.7524,1819.8,1819.5,11.04971766]
[1743642559938,5.14849,1819.8,1819.5,11.04971766]
[1743642560570,0.7524,1819.8,1819.5,11.04971766]
[1743642560938,0.7524,1819.8,1819.6,5.703]
[1743642561340,4.39589,1819.9,1819.6,5.703]
[1743642561541,5.20351,1820.0,1819.7,0.05494907]
[1743642561881,7.3955,1820.1,1819.6,11.20445177]
[1743642562109,7.3955,1820.1,1819.7,5.28135649]
[1743642562386,7.3955,1820.1,1819.7,5.22641]
[1743642562987,4.39578,1820.0,1819.6,11.20445177]
[1743642563842,4.39578,1820.0,1819.6,16.55216943]
[1743642564154,7.3955,1820.1,1819.7,6.10646375]
[1743642564777,11.79109,1820.1,1819.7,6.10646375]
[1743642564956,11.79109,1820.1,1819.7,4.3963]
[1743642565163,4.39564,1820.0,1819.6,15.44709766]
[1743642565477,0.8186,1819.9,1819.6,15.44709766]
[1743642566104,0.8186,1819.9,1819.6,11.05071766]
[1743642570782,5.21447,1819.9,1819.6,11.05071766]
[1743642571186,4.39632,1819.7,1819.6,5.34771766]
[1743642571399,5.19057,1819.6,1819.5,5.34771766]
[1743642571564,4.39709,1819.4,1819.2,5.34771766]
[1743642571763,4.39709,1819.4,1819.3,5.702]
[1743642571978,4.39696,1819.5,1819.3,5.702]
[1743642572464,4.39696,1819.5,1819.4,5.702]
[1743642573903,4.39634,1819.7,1819.4,5.702]
[1743642574102,8.22649,1819.8,1819.4,5.75695629]
[1743642574103,5.22649,1819.8,1819.4,5.75695629]
[1743642574271,5.19684,1820.0,1819.5,4.39661]
[1743642574467,9.59264,1820.0,1819.6,4.39644]
[1743642574706,5.19684,1820.0,1819.6,4.39644]
[1743642575309,10.97279893,1820.2,1819.6,4.39644]
[1743642575310,7.39538,1820.1,1819.6,4.39641]
[1743642575510,4.39538,1820.1,1819.7,5.26696694]
[1743642575698,4.39538,1820.1,1819.8,5.702]
[1743642575901,8.79097,1820.1,1819.8,5.702]
[1743642576196,4.39564,1820.0,1819.8,5.702]
[1743642577908,8.79097,1820.1,1819.8,5.702]
[1743642578409,4.39564,1820.0,1819.8,5.702]
[1743642579313,4.39538,1820.1,1819.8,5.702]
[1743642579611,4.39561,1820.0,1819.8,5.702]
[1743642580282,5.20594,1819.9,1819.8,5.702]
[1743642580900,0.8101,1819.9,1819.8,5.702]
[1743642581107,4.39561,1820.0,1819.8,5.702]
[1743642582294,5.355718,1820.0,1819.8,5.702]
[1743642583625,5.355718,1820.0,1819.7,5.34771766]
[1743642583794,0.7614,1819.8,1819.7,5.34771766]
[1743642584117,0.7614,1819.8,1819.7,11.04871766]
[1743642588231,5.15749,1819.8,1819.6,0.17173517]
[1743642588529,5.15749,1819.8,1819.7,5.7]
[1743642588903,5.17573,1820.0,1819.7,6.4884]
[1743642589130,5.17573,1820.0,1819.7,5.7]
[1743642589433,8.79189,1819.9,1819.7,5.7]
[1743642590231,4.39586,1819.9,1819.7,5.7]
[1743642592833,4.39586,1819.9,1819.5,0.17174277]
[1743642593055,7.97405893,1819.6,1819.5,5.87174277]
[1743642593218,11.78035893,1819.6,1819.5,0.17174277]
[1743642593841,8.20287,1819.6,1819.5,0.17174277]
[1743642594041,11.78035893,1819.6,1819.5,0.17174277]
[1743642594444,4.39729,1819.3,1819.2,5.7]
[1743642594604,4.39728,1819.4,1819.2,5.7]
[1743642595031,8.79456,1819.4,1819.2,5.7]
[1743642595617,4.39728,1819.4,1819.2,5.7]
[1743642596341,8.78105893,1819.8,1819.2,10.66736]
[1743642596541,8.78105893,1819.8,1819.3,0.05495889]
[1743642596739,4.39645,1819.7,1819.3,4.45217889]
[1743642597040,4.39645,1819.7,1819.3,4.39722]
[1743642597250,8.79297,1819.7,1819.3,4.39722]
[1743642597405,4.39645,1819.7,1819.3,4.39722]
[1743642597604,8.79297,1819.7,1819.4,0.7914]
[1743642599613,4.39657,1819.6,1819.3,0.7555]
[1743642600058,3.57748893,1819.5,1818.7,5.34771766]
[1743642600354,4.39817,1819.0,1818.8,5.7]
[1743642600640,4.39817,1819.0,1818.9,5.7]
[1743642601446,4.39783,1819.1,1818.9,5.7]
[1743642602347,3.0,1819.4,1819.0,0.83887404]
[1743642602649,4.39714,1819.4,1819.0,10.52954766]
[1743642602836,4.39772,1819.2,1819.0,5.34771766]
[1743642603350,9.61234,1819.2,1819.0,5.34771766]
[1743642603913,5.21462,1819.2,1819.0,5.34771766]
[1743642604148,4.39729,1819.3,1819.0,5.40268716]
[1743642604346,5.21401,1819.4,1819.0,5.40268716]
[1743642604523,8.79439,1819.4,1819.1,0.8182]
[1743642605447,4.39711,1819.4,1819.1,0.8182]
[1743642605654,8.79119893,1819.5,1819.1,5.21596]
[1743642605854,8.74541893,1819.7,1819.3,4.39724]
[1743642606152,8.74541893,1819.7,1819.4,5.7]
[1743642606153,4.39681,1819.5,1819.4,5.7]
[1743642606357,9.68073693,1819.5,1819.4,5.7]
[1743642606553,12.68073693,1819.5,1819.4,5.7]